bitfinex-derivatives/quotes_SOLF0:USTF0_20240827
["timestamp","ask_amount","ask_price","bid_price","bid_amount"]
[1724757385218,19.87,154.73,154.63,19.87]
[1724757385219,23.13511154,154.75,154.63,19.87]
[1724757385418,23.13511154,154.75,154.66,19.87]
[1724757385419,4.84,154.74,154.66,19.87]
[1724757385720,3.2317,154.7,154.66,23.1022]
[1724757386113,0.04722773,154.7,154.66,19.91380513]
[1724757387325,3.27892773,154.7,154.67,3.2321]
[1724757387525,0.04722773,154.7,154.66,0.04380513]
[1724757388921,3.2319,154.69,154.66,0.04380513]
[1724757389119,0.04722773,154.7,154.66,0.04380513]
[1724757389727,3.2319,154.69,154.66,0.04380513]
[1724757390225,0.04722773,154.7,154.66,0.04380513]
[1724757391423,3.2319,154.69,154.66,3.27610513]
[1724757392026,3.232,154.68,154.66,0.04380513]
[1724757397334,3.2318,154.69,154.67,19.87]
[1724757397922,0.04722773,154.7,154.67,19.87]
[1724757398529,3.2319,154.69,154.67,19.87]
[1724757399121,3.2319,154.68,154.67,19.87]
[1724757399327,0.04722773,154.7,154.67,19.87]
[1724757399630,3.2319,154.69,154.67,19.87]
[1724757402027,3.27892773,154.7,154.67,23.1021]
[1724757403334,3.2318,154.69,154.67,19.87]
[1724757403531,0.04722773,154.7,154.67,19.87]
[1724757403730,3.2319,154.69,154.67,19.87]
[1724757406034,3.2319,154.69,154.68,7.95]
[1724757406630,0.04722773,154.7,154.68,7.95]
[1724757406830,3.27892773,154.7,154.68,7.95]
[1724757407229,3.2317,154.69,154.68,7.95]
[1724757409536,3.2322,154.67,154.66,0.04380513]
[1724757409732,3.2322,154.67,154.66,7.99380513]
[1724757410131,3.232,154.68,154.66,7.99380513]
[1724757410334,3.232,154.68,154.67,7.95]
[1724757410540,0.04722773,154.7,154.67,7.95]
[1724757410729,0.04722773,154.7,154.66,0.04380513]
[1724757411035,0.04722773,154.7,154.69,7.95]
[1724757412434,0.04722773,154.7,154.69,11.1817]
[1724757415135,3.822,154.76,154.7,3.2314]
[1724757415331,3.2309,154.74,154.73,7.95]
[1724757415538,3.822,154.76,154.73,7.95]
[1724757415539,2.5624,154.76,154.73,7.95]
[1724757415734,1.3349,154.76,154.7,4.82]
[1724757415938,3.2306,154.75,154.74,7.95]
[1724757416435,4.61277466,154.76,154.74,7.95]
[1724757416842,3.2305,154.75,154.74,7.95]
[1724757417545,1.38237466,154.76,154.74,7.95]
[1724757417748,1.38237466,154.76,154.75,7.95]
[1724757417948,0.04747466,154.76,154.75,7.95]
[1724757419246,3.27777466,154.76,154.75,7.95]
[1724757421243,3.2306,154.75,154.74,7.95]
[1724757421551,0.04747466,154.76,154.73,0.04270507]
[1724757421749,3.2307,154.74,154.73,0.04270507]
[1724757421949,1.2884,154.75,154.7,7.95]
[1724757422447,1.2884,154.75,154.72,7.95]
[1724757423047,3.2307,154.74,154.72,7.95]
[1724757423246,3.2307,154.74,154.73,7.95]
[1724757423445,1.33617294,154.75,154.73,7.95]
[1724757423446,0.04777294,154.75,154.73,7.95]
[1724757423761,0.04777294,154.75,154.74,7.95]
[1724757424449,1.3296,154.8,154.76,3.2303]
[1724757424648,1.3296,154.8,154.78,7.95]
[1724757425042,3.23,154.78,154.77,7.95]
[1724757425350,1.3296,154.8,154.75,7.95]
[1724757425553,0.04829644,154.79,154.76,0.0459218]
[1724757426344,3.2301,154.77,154.76,0.0459218]
[1724757427748,3.2307,154.74,154.67,3.17856281]
[1724757427956,7.95,154.76,154.69,7.95]
[1724757428158,7.95,154.76,154.64,31.8]
[1724757428361,3.2313,154.72,154.69,7.95]
[1724757428858,3.27558228,154.72,154.69,7.99788323]
[1724757429157,3.2313,154.71,154.69,7.99788323]
[1724757429561,0.04428228,154.72,154.69,7.99788323]
[1724757429761,0.04428228,154.72,154.71,7.95]
[1724757430650,1.3215,154.78,154.71,7.95]
[1724757430859,1.3215,154.78,154.76,7.95]
[1724757431052,1.3215,154.78,154.74,7.95]
[1724757431256,1.3215,154.78,154.67,3.23194776]
[1724757431257,1.3215,154.78,154.73,7.95]
[1724757431556,9.2715,154.78,154.48,6.486]
[1724757431759,0.04682358,154.73,154.7,7.99097763]
[1724757432263,3.2313,154.72,154.7,7.99097763]
[1724757432559,0.04682358,154.73,154.7,7.99097763]
[1724757432761,3.27772358,154.73,154.72,7.95]
[1724757434763,0.04682358,154.73,154.72,7.95]
[1724757434963,0.04682358,154.73,154.72,11.1811]
[1724757435459,0.04682358,154.73,154.72,7.95]
[1724757435761,3.27772358,154.73,154.72,7.95]
[1724757435955,3.27772358,154.73,154.7,7.99097763]
[1724757436156,0.04682358,154.73,154.7,7.99097763]
[1724757436355,3.27782358,154.73,154.7,7.99097763]
[1724757436561,0.04682358,154.73,154.7,7.99097763]
[1724757436752,3.2313,154.72,154.7,7.99097763]
[1724757438064,0.04682358,154.73,154.71,7.95]
[1724757438963,3.2311,154.72,154.71,7.95]
[1724757439364,0.04682358,154.73,154.7,7.99097763]
[1724757439557,3.2313,154.71,154.7,7.99097763]
[1724757439757,0.04682358,154.73,154.7,7.99097763]
[1724757439965,0.04682358,154.73,154.7,0.04097763]
[1724757440259,3.2313,154.71,154.7,0.04097763]
[1724757442259,0.04682358,154.73,154.7,7.99097763]
[1724757442463,0.04682358,154.73,154.72,11.1811]
[1724757442864,3.2303,154.76,154.72,11.1811]
[1724757443065,1.2784,154.79,154.75,7.95]
[1724757443369,3.2297,154.79,154.77,7.95]
[1724757443763,1.3132,154.81,154.77,7.95]
[1724757443974,1.3132,154.81,154.77,7.9937542]
[1724757444158,3.2298,154.79,154.77,7.9937542]
[1724757444469,3.2298,154.79,154.77,0.0437542]
[1724757444959,3.2295,154.8,154.77,11.2237542]
[1724757445567,3.2298,154.79,154.77,7.9937542]
[1724757445767,9.2632,154.81,154.77,0.0437542]
[1724757445969,1.3132,154.81,154.77,0.0437542]
[1724757446459,3.2299,154.78,154.77,0.0437542]
[1724757446665,1.3132,154.81,154.73,19.86]
[1724757447067,3.2304,154.76,154.73,19.86]
[1724757447263,19.86,154.8,154.71,19.86]
[1724757447667,3.2308,154.74,154.71,19.86]
[1724757447865,3.2308,154.74,154.71,19.90091608]
[1724757448265,3.2304,154.76,154.72,3.231]
[1724757448471,0.04900744,154.77,154.73,19.86]
[1724757448669,0.04900744,154.77,154.71,0.04091608]
[1724757448875,0.04900744,154.77,154.72,19.86]
[1724757449873,0.04900744,154.77,154.73,3.2308]
[1724757450263,0.04900744,154.77,154.74,19.86]
[1724757450464,3.27910744,154.77,154.74,19.86]
[1724757450667,0.04900744,154.77,154.74,19.86]
[1724757453273,3.27910744,154.77,154.74,23.0907]
[1724757453673,0.04900744,154.77,154.76,19.86]
[1724757453872,0.04900744,154.77,154.76,23.0903]
[1724757457978,0.04900744,154.77,154.76,19.86]
[1724757458574,0.04900744,154.77,154.75,0.04975105]
[1724757460178,0.04900744,154.77,154.75,19.90975105]
[1724757461280,0.04900744,154.77,154.76,3.2303]
[1724757463283,0.04900744,154.77,154.75,23.14015105]
[1724757464079,0.04900744,154.77,154.76,3.2303]
[1724757464682,0.04900744,154.77,154.75,19.90975105]
[1724757466586,0.04900744,154.77,154.75,23.14005105]
[1724757467480,0.04900744,154.77,154.76,3.2303]
[1724757467982,0.04900744,154.77,154.76,11.1703]
[1724757468285,0.04900744,154.77,154.76,7.94]
[1724757468480,0.04900744,154.77,154.75,0.04975105]
[1724757468674,3.2303,154.76,154.75,0.04975105]
[1724757468883,0.04900744,154.77,154.71,7.94]
[1724757469078,1.2893,154.76,154.71,7.94]
[1724757469282,3.2306,154.75,154.71,11.1712]
[1724757469682,1.2893,154.76,154.71,11.1712]
[1724757469879,3.27371304,154.75,154.72,0.0454487]
[1724757470081,3.27371304,154.75,154.72,3.2764487]
[1724757470683,3.27371304,154.75,154.73,7.94]
[1724757470897,0.04311304,154.75,154.73,7.94]
[1724757471284,0.04311304,154.75,154.73,11.1709]
[1724757472083,0.04311304,154.75,154.74,7.94]
[1724757472287,6.4576,154.84,154.74,7.94]
[1724757472288,6.4552,154.9,154.74,7.94]
[1724757472481,10.4639,154.86,154.8,7.94]
[1724757472887,3.2292,154.82,154.8,7.94]
[1724757473690,3.2292,154.81,154.8,7.94]
[1724757474092,3.2292,154.81,154.79,0.04205718]
[1724757475889,0.04108409,154.83,154.79,0.04205718]
[1724757476792,3.2294,154.8,154.79,0.04205718]
[1724757480596,3.2293,154.81,154.79,0.04205718]
[1724757481096,3.2294,154.8,154.79,0.04205718]
[1724757481688,19.84,154.82,154.72,19.84]
[1724757481895,1.3288,154.79,154.72,19.84]
[1724757483090,3.27587324,154.77,154.74,3.27555102]
[1724757483290,3.27587324,154.77,154.74,0.04485102]
[1724757484401,0.04567324,154.77,154.75,3.2305]
[1724757485199,1.2351,154.85,154.76,19.84]
[1724757485392,4.8,154.88,154.84,19.84]
[1724757485587,3.2279,154.88,154.84,23.0685]
[1724757485788,2.5722,154.92,154.84,23.0685]
[1724757486199,3.2278,154.88,154.86,0.04433006]
[1724757487396,0.04177987,154.9,154.86,0.04433006]
[1724757487596,0.04177987,154.9,154.89,19.84]
[1724757488602,0.04177987,154.9,154.86,0.04433006]
[1724757488793,0.04177987,154.9,154.87,19.84]
[1724757488994,0.04177987,154.9,154.86,0.04433006]
[1724757490302,3.228,154.87,154.86,0.04433006]
[1724757490595,3.23947193,154.88,154.81,19.84]
[1724757490798,1.2364,154.89,154.81,19.84]
[1724757490799,2.5118,154.89,154.81,19.84]
[1724757490996,3.2287,154.84,154.81,19.84]
[1724757491191,2.5118,154.89,154.81,19.84]
[1724757491392,23.05320315,154.88,154.79,19.84]
[1724757491891,0.04525142,154.85,154.82,0.04107993]
[1724757492096,3.2286,154.84,154.82,0.04107993]
[1724757493098,3.27365142,154.85,154.82,0.04107993]
[1724757493396,0.04525142,154.85,154.82,0.04107993]
[1724757494100,3.2288,154.83,154.82,0.04107993]
[1724757494606,0.04525142,154.85,154.82,0.04107993]
[1724757495602,3.2288,154.83,154.82,0.04107993]
[1724757496400,1.26595142,154.85,154.76,19.84]
[1724757496597,1.2207,154.85,154.76,19.84]
[1724757496799,3.2302,154.77,154.74,19.84]
[1724757497005,19.84,154.81,154.72,19.84]
[1724757497302,3.2304,154.76,154.72,19.84]
[1724757497601,1.3141,154.8,154.75,0.04897031]
[1724757497901,0.04708774,154.78,154.75,0.04897031]
[1724757498095,19.88708774,154.78,154.67,24.64]
[1724757498305,19.84,154.76,154.67,19.84]
[1724757498493,1.2963,154.75,154.67,19.84]
[1724757499206,0.04307218,154.73,154.69,0.04768601]
[1724757499401,3.2315,154.71,154.69,0.04768601]
[1724757499804,0.04307218,154.73,154.69,0.04768601]
[1724757501203,3.2312,154.72,154.69,0.04768601]
[1724757501403,0.04307218,154.73,154.69,0.04768601]
[1724757502307,3.2312,154.72,154.69,0.04768601]
[1724757502708,3.2312,154.72,154.69,3.27938601]
[1724757503206,0.04307218,154.73,154.69,3.27938601]
[1724757503207,3.27407218,154.73,154.69,3.27938601]
[1724757503407,0.04307218,154.73,154.69,19.88768601]
[1724757504001,0.04307218,154.73,154.71,3.2312]
[1724757505910,0.04307218,154.73,154.72,3.2311]
[1724757507313,0.04307218,154.73,154.69,19.88768601]
[1724757507909,0.04307218,154.73,154.7,3.2314]
[1724757508817,0.04307218,154.73,154.69,23.11938601]
[1724757509013,0.04307218,154.73,154.69,19.88768601]
[1724757509413,0.04307218,154.73,154.7,3.2313]
[1724757509614,0.04307218,154.73,154.69,0.04768601]
[1724757510408,3.2312,154.72,154.69,0.04768601]
[1724757511416,0.04307218,154.73,154.69,0.04768601]
[1724757511921,0.04307218,154.73,154.7,3.2314]
[1724757512115,0.04307218,154.73,154.69,0.04768601]
[1724757512116,3.27417218,154.73,154.69,0.04768601]
[1724757512920,3.27417218,154.73,154.69,3.27938601]
[1724757515316,0.04307218,154.73,154.69,0.04768601]
[1724757517223,3.2315,154.71,154.69,0.04768601]
[1724757521728,0.04307218,154.73,154.69,0.04768601]
[1724757522231,3.2313,154.72,154.69,0.04768601]
[1724757522927,19.84,154.72,154.66,3.2322]
[1724757523129,1.2562,154.71,154.62,27.82514187]
[1724757523431,3.2318,154.69,154.65,3.2324]
[1724757523927,3.2318,154.69,154.65,3.27810159]
[1724757524128,3.232,154.68,154.65,3.27810159]
[1724757525025,3.2322,154.67,154.65,0.04570159]
[1724757526631,4.5465,154.68,154.65,3.27830159]
[1724757528431,3.2322,154.67,154.65,0.04570159]
[1724757531232,4.5464,154.68,154.65,3.27830159]
[1724757532329,1.3144,154.68,154.66,3.2324]
[1724757532836,0.04344332,154.69,154.66,19.84]
[1724757534331,0.04344332,154.69,154.68,3.2319]
[1724757542047,0.04344332,154.69,154.67,3.2321]
[1724757545940,0.04344332,154.69,154.68,3.2319]
[1724757547338,0.04344332,154.69,154.67,3.2321]
[1724757548235,3.27524332,154.69,154.65,19.89570159]
[1724757548745,3.27524332,154.69,154.65,0.04570159]
[1724757548746,0.04344332,154.69,154.65,0.04570159]
[1724757549135,3.27524332,154.69,154.65,0.04570159]
[1724757549737,3.232,154.68,154.65,3.27820159]
[1724757552349,3.232,154.68,154.65,0.04570159]
[1724757552546,3.2323,154.67,154.65,0.04570159]
[1724757556354,3.2324,154.66,154.65,0.04570159]
[1724757558359,3.2322,154.67,154.65,0.04570159]
[1724757559053,3.2321,154.68,154.65,0.04570159]
[1724757559949,3.2322,154.67,154.65,0.04570159]
[1724757565359,3.2324,154.66,154.65,0.04570159]
[1724757565658,19.85,154.67,154.6,2.16901801]
[1724757565867,1.2449,154.66,154.61,4.60174064]
[1724757566058,3.2328,154.64,154.6,3.2335]
[1724757566264,3.2328,154.64,154.61,4.601751]
[1724757566456,3.2328,154.64,154.6,3.2335]
[1724757566659,3.27406792,154.64,154.61,4.60159888]
[1724757566862,3.27406792,154.64,154.6,3.27922287]
[1724757567064,3.27406792,154.64,154.61,4.60171253]
[1724757567254,3.27406792,154.64,154.6,3.27922287]
[1724757567567,3.233,154.63,154.61,4.60146145]
[1724757567861,3.2334,154.61,154.6,0.04572287]
[1724757568053,3.2334,154.61,154.6,3.35297936]
[1724757568256,3.2334,154.61,154.6,0.04572287]
[1724757569667,3.2333,154.62,154.6,0.04572287]
[1724757570456,7.99126792,154.64,154.6,0.04572287]
[1724757570859,9.27146792,154.64,154.6,0.04572287]
[1724757571065,3.2332,154.62,154.6,0.04572287]
[1724757573072,3.2334,154.61,154.6,0.04572287]
[1724757573265,7.95,154.63,154.6,0.04572287]
[1724757573964,3.2333,154.62,154.6,0.04572287]
[1724757576061,7.95,154.63,154.6,0.04572287]
[1724757576972,11.1831,154.63,154.6,0.04572287]
[1724757577668,1.32146792,154.64,154.6,0.04572287]
[1724757577872,1.32146792,154.64,154.6,7.99572287]
[1724757578263,0.04126792,154.64,154.6,7.99572287]
[1724757578871,0.04126792,154.64,154.61,3.2333]
[1724757579370,0.04126792,154.64,154.6,7.99572287]
[1724757579870,0.04126792,154.64,154.62,3.2331]
[1724757580669,0.04126792,154.64,154.63,3.233]
[1724757581065,0.04126792,154.64,154.63,11.183]
[1724757581580,0.04126792,154.64,154.63,3.233]
[1724757583875,0.04126792,154.64,154.63,7.83382342]
[1724757584573,0.04126792,154.64,154.63,1.29324815]
[1724757584774,44.53,154.64,154.26,0.922]
[1724757585078,25.86,154.64,154.39,7.95]
[1724757585283,7.95,154.47,154.39,3.23742354]
[1724757585579,7.95,154.44,154.37,3.5426]
[1724757585786,0.04777652,154.42,154.39,0.04922808]
[1724757585970,0.04483259,154.42,154.39,0.04529816]
[1724757586172,6.3744704,154.41,154.39,0.04529816]
[1724757586373,0.04483259,154.42,154.39,3.23627549]
[1724757586374,6.3744704,154.4,154.39,3.23627549]
[1724757586579,0.04483259,154.42,154.39,0.04529816]
[1724757586778,0.04483259,154.42,154.4,3.21169796]
[1724757587381,0.04483259,154.42,154.39,0.04529816]
[1724757587886,0.04483259,154.42,154.4,3.1686379]
[1724757588488,0.04483259,154.42,154.39,0.04529816]
[1724757589092,0.04483259,154.42,154.41,3.2376]
[1724757590887,0.04483259,154.42,154.39,3.28309816]
[1724757591088,0.04483259,154.42,154.39,0.04529816]
[1724757592690,0.04483259,154.42,154.39,3.2355155]
[1724757593091,0.04483259,154.42,154.4,19.9]
[1724757593485,0.04483259,154.42,154.39,3.2355155]
[1724757595297,0.04483259,154.42,154.39,6.4735155]
[1724757597688,0.04483259,154.42,154.39,3.28329816]
[1724757598393,0.04483259,154.42,154.39,0.04529816]
[1724757601497,0.04483259,154.42,154.39,3.21847508]
[1724757601691,0.04483259,154.42,154.4,19.9]
[1724757601991,0.04483259,154.42,154.41,3.2376]
[1724757602988,0.04483259,154.42,154.4,4.4616]
[1724757603289,0.04483259,154.42,154.39,7.99847508]
[1724757604402,0.04483259,154.42,154.41,3.2376]
[1724757610695,0.04483259,154.42,154.4,3.2377]
[1724757612096,0.04483259,154.42,154.41,3.2376]
[1724757612603,0.04483259,154.42,154.39,0.04529816]
[1724757613506,3.28223259,154.42,154.39,0.04529816]
[1724757613698,0.04483259,154.42,154.39,0.04529816]
[1724757614803,0.04483259,154.42,154.4,3.2377]
[1724757615503,0.04483259,154.42,154.41,3.2376]
[1724757617501,0.04483259,154.42,154.39,3.21673151]
[1724757617712,0.04483259,154.42,154.39,0.04529816]
[1724757618308,0.04483259,154.42,154.41,3.2376]
[1724757620615,0.04483259,154.42,154.4,3.2377]
[1724757622009,0.04483259,154.42,154.39,0.04529816]
[1724757623412,0.04483259,154.42,154.39,3.28329816]
[1724757624413,0.04483259,154.42,154.39,0.04529816]
[1724757624817,0.04483259,154.42,154.4,3.2378]
[1724757626011,0.04483259,154.42,154.39,3.28319816]
[1724757628720,0.04483259,154.42,154.41,3.2376]
[1724757629123,1.2187,154.49,154.4,39.8]
[1724757629419,1.2187,154.49,154.44,19.9]
[1724757630014,1.2187,154.49,154.45,3.2366]
[1724757630214,1.26511564,154.49,154.45,3.27860396]
[1724757630616,4.50101564,154.49,154.45,0.04200396]
[1724757631212,0.04641564,154.49,154.45,0.04200396]
[1724757631423,0.04641564,154.49,154.47,3.2363]
[1724757632820,0.04641564,154.49,154.46,23.1365]
[1724757633020,0.04641564,154.49,154.45,0.04200396]
[1724757633420,0.04641564,154.49,154.45,3.27860396]
[1724757633810,0.04641564,154.49,154.45,0.04200396]
[1724757635319,0.04641564,154.49,154.46,3.2365]
[1724757637324,0.04641564,154.49,154.45,3.27860396]
[1724757637517,3.28241564,154.49,154.45,0.04200396]
[1724757639424,0.04641564,154.49,154.45,0.04200396]
[1724757641017,0.04641564,154.49,154.46,3.2364]
[1724757642024,0.04641564,154.49,154.47,3.2363]
[1724757642422,0.04641564,154.49,154.47,3.2362]
[1724757642727,0.04641564,154.49,154.48,19.9]
[1724757643129,0.04641564,154.49,154.48,23.1361]
[1724757644923,0.04641564,154.49,154.48,3.2361]
[1724757648923,0.04641564,154.49,154.47,3.2363]
[1724757652334,0.04641564,154.49,154.47,6.45904864]
[1724757652529,0.04641564,154.49,154.47,3.2363]
[1724757652927,0.04641564,154.49,154.48,23.1361]
[1724757654128,0.04641564,154.49,154.48,27.75590251]
[1724757654428,4.465,154.57,154.48,23.22531637]
[1724757654627,4.465,154.57,154.52,19.9]
[1724757654843,1.2306,154.57,154.5,19.9]
[1724757655136,3.2347,154.55,154.5,19.9]
[1724757655330,0.0416389,154.54,154.51,0.04667885]
[1724757655531,0.0416389,154.54,154.52,3.2353]
[1724757657630,0.0416389,154.54,154.51,3.28207885]
[1724757660333,0.0416389,154.54,154.52,19.9]
[1724757661034,0.0416389,154.54,154.51,0.04667885]
[1724757661529,0.0416389,154.54,154.51,3.28207885]
[1724757669343,3.2353,154.52,154.51,0.04667885]
[1724757673553,19.9416389,154.54,154.44,19.9]
[1724757673752,19.9,154.54,154.46,4.76]
[1724757674351,3.2358,154.5,154.46,7.9964]
[1724757674552,0.04615354,154.5,154.46,0.04422783]
[1724757674858,3.2363,154.47,154.46,0.04422783]
[1724757675550,3.2362,154.48,154.46,0.04422783]
[1724757676260,0.04615354,154.5,154.46,0.04422783]
[1724757676555,0.04615354,154.5,154.46,3.28062783]
[1724757676756,3.28205354,154.5,154.46,3.28062783]
[1724757677154,0.04615354,154.5,154.46,3.28062783]
[1724757678452,0.04615354,154.5,154.46,0.04422783]
[1724757679263,3.2363,154.48,154.46,0.04422783]
[1724757679457,0.04615354,154.5,154.46,0.04422783]
[1724757679752,3.2363,154.47,154.46,0.04422783]
[1724757679954,0.04615354,154.5,154.46,0.04422783]
[1724757680353,0.04615354,154.5,154.46,3.28072783]
[1724757680751,0.04615354,154.5,154.46,0.04422783]
[1724757682359,3.2361,154.48,154.46,0.04422783]
[1724757683453,3.2363,154.47,154.46,0.04422783]
[1724757683653,0.04615354,154.5,154.46,0.04422783]
[1724757684359,3.2363,154.48,154.46,0.04422783]
[1724757685762,3.2363,154.47,154.46,0.04422783]
[1724757691767,0.04615354,154.5,154.46,0.04422783]
[1724757693165,3.236,154.49,154.46,3.28062783]
[1724757695365,3.2362,154.48,154.46,0.04422783]
[1724757699567,0.04615354,154.5,154.46,3.28072783]
[1724757699976,3.28195354,154.5,154.46,3.28072783]
[1724757700570,0.04615354,154.5,154.46,3.28072783]
[1724757701374,3.236,154.49,154.46,3.28072783]
[1724757702979,3.236,154.49,154.46,3.2365]
[1724757703682,3.236,154.49,154.45,11.1867]
[1724757704082,3.236,154.49,154.45,7.95]
[1724757705282,3.236,154.49,154.46,3.2364]
[1724757705987,3.2358,154.5,154.46,3.2364]
[1724757707691,3.2359,154.49,154.46,3.2364]
[1724757708888,3.2358,154.5,154.46,3.2364]
[1724757710388,9.2359,154.52,154.45,11.1866]
[1724757710389,3.2361,154.49,154.45,11.1866]
[1724757710687,7.95,154.49,154.43,4.76]
[1724757710895,7.95,154.47,154.42,1.2641]
[1724757711392,3.2366,154.46,154.42,4.5013]
[1724757711584,7.95,154.49,154.42,9.2141]
[1724757712086,3.2366,154.46,154.43,3.2371]
[1724757712686,3.2366,154.46,154.42,4.5014]
[1724757712885,7.95,154.46,154.32,6.4786]
[1724757713095,7.95,154.46,154.4,9.36721493]
[1724757713386,7.95,154.46,154.39,62.60706807]
[1724757713791,7.95,154.46,154.4,3.31232929]
[1724757714089,3.2371,154.44,154.4,3.2377]
[1724757714989,3.2371,154.44,154.41,7.95]
[1724757715493,3.2368,154.45,154.41,11.1876]
[1724757717691,3.2368,154.45,154.41,7.95]
[1724757717890,3.2371,154.44,154.41,7.95]
[1724757718089,7.95,154.46,154.41,7.95]
[1724757719391,3.2368,154.45,154.41,11.1876]
[1724757721301,7.95,154.45,154.4,4.4947]
[1724757722707,7.95,154.45,154.4,1.257]
[1724757724301,3.2371,154.44,154.4,4.4948]
[1724757726498,3.2371,154.44,154.4,12.4448]
[1724757731800,3.2371,154.44,154.4,4.4948]
[1724757732395,1.2652,154.46,154.42,7.95]
[1724757733202,1.2652,154.46,154.4,1.257]
[1724757733408,7.95,154.45,154.38,7.95]
[1724757733908,3.2371,154.44,154.4,11.1877]
[1724757736015,3.2371,154.44,154.4,3.2377]
[1724757737611,3.2372,154.43,154.39,3.238]
[1724757737810,3.2372,154.43,154.4,3.31330321]
[1724757740313,3.2372,154.43,154.39,11.188]
[1724757740513,3.2372,154.43,154.4,4.60873853]
[1724757740712,3.2372,154.43,154.39,11.188]
[1724757741014,3.2372,154.43,154.4,4.60875809]
[1724757741206,3.2372,154.43,154.39,11.188]
[1724757741408,3.2372,154.43,154.4,4.60887846]
[1724757741705,3.2372,154.43,154.39,11.188]
[1724757741908,3.2372,154.43,154.4,7.84602117]
[1724757742111,7.95,154.45,154.4,3.2378]
[1724757742112,3.237,154.44,154.4,3.2378]
[1724757742311,3.237,154.44,154.41,1.29514934]
[1724757745015,3.2368,154.45,154.42,7.95]
[1724757745213,0.04713535,154.45,154.44,7.95]
[1724757745516,0.04713535,154.45,154.44,11.25882523]
[1724757745814,0.04713535,154.45,154.44,12.55376724]
[1724757746417,0.04713535,154.45,154.44,15.79076724]
[1724757747310,0.04713535,154.45,154.44,11.187]
[1724757747506,0.04713535,154.45,154.44,15.78724582]
[1724757747705,0.04713535,154.45,154.44,14.49238141]
[1724757747912,3.8858,154.54,154.44,11.25538141]
[1724757748116,7.95,154.53,154.47,7.95]
[1724757749018,3.2357,154.5,154.48,0.0430151]
[1724757749217,0.04602549,154.52,154.48,0.0430151]
[1724757749620,3.2356,154.51,154.48,0.0430151]
[1724757749813,0.04602549,154.52,154.48,3.2791151]
[1724757750013,0.04602549,154.52,154.49,7.95]
[1724757750218,0.04602549,154.52,154.48,0.0430151]
[1724757750219,0.04602549,154.52,154.51,7.95]
[1724757750519,1.2244,154.6,154.51,7.95]
[1724757750715,1.2244,154.6,154.54,7.95]
[1724757751622,0.04755766,154.59,154.55,0.04571479]
[1724757752413,0.04755766,154.59,154.58,3.234]
[1724757752717,0.04755766,154.59,154.57,7.95]
[1724757753115,0.04755766,154.59,154.57,11.1842]
[1724757753420,0.04755766,154.59,154.55,0.04571479]
[1724757753810,0.04755766,154.59,154.56,3.2344]
[1724757755722,3.28135766,154.59,154.56,3.2344]
[1724757757021,3.28135766,154.59,154.55,3.28031479]
[1724757758821,0.04755766,154.59,154.57,7.95]
[1724757760527,0.04755766,154.59,154.57,11.1842]
[1724757761024,0.04755766,154.59,154.56,11.1844]
[1724757762427,0.04755766,154.59,154.57,3.2342]
[1724757764024,0.04755766,154.59,154.56,11.1843]
[1724757767135,0.04755766,154.59,154.56,3.2343]
[1724757767434,0.04755766,154.59,154.55,11.23031479]
[1724757767630,3.28145766,154.59,154.55,11.23031479]
[1724757768026,0.04755766,154.59,154.56,3.2345]
[1724757769131,0.04755766,154.59,154.58,11.184]
[1724757771337,3.2329,154.64,154.6,3.2335]
[1724757771631,3.2329,154.64,154.61,7.95]
[1724757772227,3.28207018,154.64,154.61,7.99115247]
[1724757773027,0.04917018,154.64,154.61,11.22455247]
[1724757773236,0.04917018,154.64,154.61,7.99115247]
[1724757773835,3.28197018,154.64,154.61,7.99115247]
[1724757775034,3.28197018,154.64,154.61,0.04115247]
[1724757775343,3.2331,154.63,154.61,0.04115247]
[1724757779837,3.2331,154.63,154.62,7.95]
[1724757781546,3.2331,154.63,154.61,0.04115247]
[1724757782247,3.28207018,154.64,154.61,0.04115247]
[1724757784348,3.233,154.63,154.61,0.04115247]
[1724757797055,3.2332,154.62,154.61,0.04115247]
[1724757799360,3.2331,154.63,154.61,0.04115247]